bitfinex/quotes_ETHUSD_20250110
["timestamp","ask_amount","ask_price","bid_price","bid_amount"]
[1736523786678,0.7768,3262.7,3261.8,3.2343593]
[1736523786679,0.01602957,3262.6,3261.8,3.2343593]
[1736523786879,0.01602957,3262.6,3261.8,0.1685993]
[1736523787134,3.06535,3262.3,3261.8,0.1685993]
[1736523787338,0.8207,3262.1,3261.8,0.1685993]
[1736523787647,0.01602957,3262.0,3261.8,0.1685993]
[1736523787778,0.7977,3262.6,3261.9,3.0656]
[1736523788147,0.7977,3262.6,3261.8,0.1685993]
[1736523788148,0.01602957,3262.5,3261.8,0.1685993]
[1736523788440,3.86339,3261.9,3261.8,0.1685993]
[1736523788642,4.249729,3261.9,3261.8,0.1685993]
[1736523788842,4.26575857,3261.9,3261.8,0.1685993]
[1736523789338,0.81372957,3261.9,3261.8,0.1685993]
[1736523789937,0.7977,3261.9,3261.8,0.1685993]
[1736523790830,0.7977,3262.6,3262.2,3.0654]
[1736523791041,0.7977,3262.6,3262.4,3.06522]
[1736523791245,0.7977,3263.4,3261.9,3.06569]
[1736523791543,0.01602957,3263.3,3262.7,3.06487]
[1736523791679,0.01602957,3263.3,3262.2,3.06534]
[1736523791880,0.01602957,3263.3,3262.6,3.06499]
[1736523792080,0.01602957,3263.3,3262.3,0.03065116]
[1736523792347,0.7977,3263.4,3261.9,0.03064821]
[1736523792485,0.8247,3264.6,3263.5,3.06411]
[1736523792688,0.01602957,3264.5,3263.6,3.0641]
[1736523792882,0.01602957,3264.5,3263.9,3.06373]
[1736523793082,0.01602957,3264.5,3262.3,3.06532]
[1736523793299,0.8247,3263.7,3262.7,3.0649]
[1736523793509,0.01602957,3263.6,3262.0,3.0656]
[1736523793722,0.01602957,3263.6,3262.4,3.06515]
[1736523793946,0.01602957,3263.6,3262.5,0.03064773]
[1736523794101,0.01602957,3263.6,3261.8,0.5235993]
[1736523794308,0.01602957,3264.0,3262.5,6.13026]
[1736523794486,0.01602957,3264.5,3262.9,3.06467]
[1736523794687,0.7793,3264.4,3262.4,0.8266]
[1736523794990,0.01602957,3264.3,3263.0,3.06457]
[1736523795214,0.7654,3264.0,3261.9,0.7642]
[1736523795449,0.01602957,3263.9,3262.2,3.06541]
[1736523795740,0.01602957,3263.9,3263.1,3.06456]
[1736523795943,0.01602957,3263.9,3262.2,3.06541]
[1736523796087,0.01602957,3263.9,3262.6,3.06494]
[1736523796285,0.01602957,3263.9,3261.9,0.7642]
[1736523796286,0.01602957,3263.9,3262.0,3.06553]
[1736523796604,3.06414,3263.6,3262.0,0.0306498]
[1736523796806,0.761,3263.8,3261.8,0.1685993]
[1736523796807,3.06467,3263.0,3261.8,0.1685993]
[1736523797011,3.84181957,3262.9,3261.8,0.1685993]
[1736523797211,0.77702957,3262.9,3261.8,0.1685993]
[1736523797842,0.77702957,3262.9,3261.9,3.06569]
[1736523798193,0.77702957,3262.9,3262.0,3.06551]
[1736523798387,0.77702957,3262.9,3261.8,3.2343793]
[1736523798624,0.38416896,3262.8,3261.8,0.1685993]
[1736523798786,0.01602957,3262.7,3262.1,3.06549]
[1736523799012,0.01602957,3262.8,3261.8,0.1685993]
[1736523799191,3.8144,3262.3,3261.8,0.1685993]
[1736523799391,3.08146957,3262.2,3261.8,0.1685993]
[1736523799594,0.8144,3262.1,3261.8,0.1685993]
[1736523799827,0.01602957,3262.0,3261.8,0.1685993]
[1736523801232,0.83652957,3262.8,3261.8,3.2343893]
[1736523801545,0.83652957,3262.8,3261.9,3.06567]
[1736523801546,0.01602957,3262.7,3261.9,3.06567]
[1736523801850,0.01602957,3262.7,3261.8,0.1685993]
[1736523803044,0.01602957,3262.7,3262.3,3.06527]
[1736523803246,0.8205,3262.8,3262.4,3.06515]
[1736523803535,0.8205,3262.8,3261.9,3.06569]
[1736523803732,0.8205,3262.8,3262.5,3.06507]
[1736523803918,0.773,3263.3,3262.3,3.06532]
[1736523804119,0.773,3263.3,3263.2,3.06447]
[1736523804433,0.01602957,3264.3,3264.0,3.06372]
[1736523804633,0.754,3264.5,3263.7,0.030638]
[1736523804817,0.754,3264.5,3262.8,3.06485]
[1736523804818,0.754,3264.5,3264.2,3.06352]
[1736523805064,0.754,3264.5,3264.0,3.0637]
[1736523805223,0.01602957,3264.4,3262.9,3.06475]
[1736523805687,0.01602957,3264.4,3263.0,0.03064066]
[1736523805887,0.01602957,3264.4,3263.9,3.06377]
[1736523806116,0.01602957,3264.4,3263.5,3.06417]
[1736523806325,0.01602957,3264.4,3263.2,3.06444]
[1736523806640,3.7664,3264.1,3262.1,3.06548]
[1736523806835,3.7664,3264.1,3263.0,3.06459]
[1736523806836,0.39266957,3264.0,3263.0,3.06459]
[1736523807136,0.39266957,3264.0,3263.1,3.06455]
[1736523807341,0.39266957,3264.0,3262.6,3.06497]
[1736523807342,0.39266957,3264.0,3262.2,3.06541]
[1736523807510,0.5575,3263.7,3261.6,3.06591]
[1736523807710,0.01602957,3263.6,3261.9,0.03065296]
[1736523807897,0.01602957,3263.6,3263.2,3.06447]
[1736523808105,0.01602957,3263.6,3262.5,3.06513]
[1736523808441,0.01602957,3263.6,3263.0,3.06465]
[1736523808640,0.7876,3263.8,3262.7,3.83594]
[1736523808847,0.01602957,3264.3,3263.6,3.06401]
[1736523809004,0.01602957,3264.3,3263.6,3.06407]
[1736523809205,0.01602957,3264.3,3263.3,3.0643]
[1736523809743,3.07946957,3264.3,3263.3,3.0643]
[1736523809945,3.45071696,3264.2,3263.1,3.06452]
[1736523810149,3.45071696,3264.2,3262.8,3.06485]
[1736523810150,0.01602957,3264.1,3263.2,3.06442]
[1736523810720,0.01602957,3264.1,3263.1,3.06454]
[1736523810919,0.01602957,3264.1,3262.5,0.03064485]
[1736523811134,0.01602957,3264.2,3263.9,3.06381]
[1736523811335,0.01602957,3264.3,3262.7,3.06494]
[1736523811532,3.06361,3264.2,3263.0,3.06463]
[1736523811733,0.7542,3263.9,3262.6,3.06496]
[1736523811937,0.01602957,3263.8,3262.4,0.03064923]
[1736523812250,0.01602957,3263.8,3261.9,3.06569]
[1736523812449,3.01602957,3263.8,3262.3,3.06531]
[1736523812607,3.01602957,3263.8,3262.1,3.0655]
[1736523812947,0.77487312,3263.7,3261.8,4.0320593]
[1736523813107,0.8259,3263.4,3262.2,3.06538]
[1736523813313,0.8259,3263.4,3262.3,0.03065379]
[1736523813605,0.8259,3263.4,3261.9,0.0306489]
[1736523813806,0.7892,3263.9,3263.2,3.0644]
[1736523814005,0.01602957,3263.8,3263.2,3.06439]
[1736523814214,0.01602957,3263.8,3262.8,3.06485]
[1736523814407,0.01602957,3263.8,3263.3,3.06431]
[1736523814655,0.01602957,3263.8,3263.0,0.03064261]
[1736523814953,3.07027,3265.1,3262.2,0.365]
[1736523814954,0.75,3265.0,3264.5,3.06325]
[1736523815134,0.75,3265.0,3264.5,3.06317]
[1736523815336,0.75,3265.0,3263.7,0.7969]
[1736523815636,0.01602957,3264.9,3264.3,3.06343]
[1736523815949,0.01602957,3264.9,3263.9,3.06379]
[1736523816110,0.38288196,3264.8,3263.1,3.06457]
[1736523816311,0.38288196,3264.8,3262.7,3.06489]
[1736523816312,3.84689957,3264.7,3263.7,3.06398]
[1736523816611,3.84689957,3264.7,3262.7,3.06489]
[1736523816612,0.7782,3264.5,3262.4,3.06521]
[1736523816956,3.7782,3264.3,3262.6,0.03064486]
[1736523817115,0.79422957,3264.3,3262.7,0.60797732]
[1736523817310,0.79422957,3264.3,3264.2,3.06353]
[1736523817311,0.7782,3264.3,3264.2,3.06353]
[1736523817541,0.01602957,3264.7,3264.2,3.06353]
[1736523817743,0.01602957,3264.7,3263.0,3.06466]
[1736523817744,0.01602957,3264.7,3263.5,3.06411]
[1736523817906,0.01602957,3264.7,3263.7,3.064]
[1736523818106,0.7878,3264.8,3264.5,3.06319]
[1736523818449,4.35100167,3265.9,3263.8,3.09454542]
[1736523818450,0.8332,3265.5,3264.2,0.03063249]
[1736523818746,0.01602957,3265.4,3264.2,3.06349]
[1736523818960,0.01602957,3265.4,3264.6,3.06314]
[1736523819319,0.40718253,3265.4,3264.3,0.03063103]
[1736523819515,0.01602957,3265.4,3264.3,0.03063103]
[1736523819822,0.01602957,3265.4,3264.5,3.06325]
[1736523820150,0.7959,3266.4,3265.2,3.06259]
[1736523820318,0.7959,3266.4,3266.2,3.06157]
[1736523820519,0.8037,3267.1,3265.6,3.06222]
[1736523820752,0.01602957,3267.0,3266.1,3.06175]
[1736523820971,0.01602957,3267.0,3266.0,3.06182]
[1736523821169,0.38805596,3266.9,3266.0,3.06182]
[1736523821377,0.01602957,3266.8,3266.0,3.06182]
[1736523821555,0.01602957,3266.8,3265.7,0.03061628]
[1736523821878,0.01602957,3266.8,3266.4,3.06143]
[1736523822077,0.01602957,3267.0,3266.4,3.06143]
[1736523822219,0.01602957,3267.0,3265.1,0.61951109]
[1736523822220,3.07693957,3267.0,3265.1,0.61951109]
[1736523822416,0.38806396,3266.9,3265.1,0.61951109]
[1736523822677,0.8037,3267.1,3266.5,3.06136]
[1736523822857,0.01602957,3267.0,3266.3,3.06156]
[1736523823375,0.01602957,3267.0,3265.9,3.06193]
[1736523823519,0.01602957,3267.0,3265.2,0.364]
[1736523823725,0.81972957,3267.1,3265.6,0.7815]
[1736523823938,0.8037,3267.1,3265.7,0.03061179]
[1736523824161,0.8037,3267.1,3266.5,3.06135]
[1736523824378,0.01602957,3267.0,3265.6,4.4468481]
[1736523824675,0.38806296,3266.9,3265.6,0.6031781]
[1736523824875,0.8037,3267.1,3265.6,0.6031781]
[1736523824876,0.01602957,3266.8,3266.1,3.06169]
[1736523825178,0.01602957,3267.0,3266.1,3.06166]
[1736523825475,0.01602957,3267.0,3265.6,0.6031781]
[1736523825694,3.06114,3266.8,3265.6,0.6031781]
[1736523825851,3.06129,3266.6,3265.6,3.6653681]
[1736523826193,0.82462957,3266.7,3265.6,3.6653681]
[1736523826194,0.40462153,3266.5,3265.6,0.6031781]
[1736523826355,0.01602957,3266.4,3265.9,3.0619]
[1736523826552,0.01602957,3266.6,3265.7,0.03061976]
[1736523827076,0.01602957,3267.4,3266.7,3.06118]
[1736523827249,0.01602957,3267.4,3266.1,3.06175]
[1736523827461,0.01602957,3267.4,3266.7,3.06118]
[1736523827853,0.8303,3267.6,3266.2,3.09227083]
[1736523828055,0.01602957,3267.5,3266.9,3.06092]
[1736523828256,0.01602957,3267.5,3267.0,3.06088]
[1736523828509,0.01602957,3267.5,3266.2,3.06166]
[1736523828510,0.01602957,3267.5,3266.2,0.62801665]
[1736523828661,0.8303,3267.2,3266.1,3.06166]
[1736523828848,3.06105,3266.9,3265.8,3.06199]
[1736523829043,0.32213457,3266.8,3265.8,3.06199]
[1736523829358,0.8196,3266.7,3265.3,3.06248]
[1736523829693,0.8196,3266.7,3265.1,0.61734527]
[1736523829694,0.01602957,3266.6,3265.4,3.0624]
[1736523829891,0.01602957,3266.6,3264.7,3.06298]
[1736523830107,0.8196,3266.5,3264.8,0.03062396]
[1736523830241,0.01602957,3266.4,3265.4,3.06232]
[1736523830441,0.01602957,3266.4,3264.8,0.03062294]
[1736523830660,0.01602957,3266.4,3265.7,3.06212]
[1736523830877,0.01602957,3266.4,3265.8,3.06201]
[1736523831082,0.01602957,3266.4,3265.9,3.06186]
[1736523831803,0.8196,3266.5,3266.4,3.06147]
[1736523831982,0.7865,3266.9,3266.6,3.06125]
[1736523832144,0.01602957,3266.8,3265.5,3.06231]
[1736523832350,0.01602957,3266.8,3266.3,3.06149]
[1736523832983,3.05996,3268.1,3267.0,3.0609]
[1736523833310,3.97850167,3268.4,3266.7,3.06115]
[1736523833311,1.40144339,3268.0,3266.7,3.06115]
[1736523833445,1.40144339,3268.0,3267.1,3.0608]
[1736523833647,3.06019,3267.8,3266.6,3.06121]
[1736523833912,1.12174857,3267.7,3266.8,3.04807]
[1736523834200,1.12174857,3267.7,3265.8,3.06203]
[1736523834201,3.06046,3267.5,3265.8,3.06203]
[1736523834382,0.8058,3267.3,3266.0,3.06176]
[1736523834592,0.55,3267.6,3266.0,3.06176]
[1736523834593,0.01602957,3267.2,3266.0,3.06176]
[1736523834746,0.8058,3267.1,3266.0,3.06176]
[1736523834952,0.8058,3266.7,3264.5,0.7666]
[1736523835326,3.0,3265.8,3264.1,0.7666]
[1736523835451,0.77222957,3265.7,3265.2,3.06254]
[1736523835658,0.7562,3265.7,3265.6,3.06222]
[1736523835954,0.7562,3266.1,3265.3,3.06241]
[1736523836155,0.01602957,3266.0,3265.5,3.06222]
[1736523836616,0.01602957,3266.0,3265.7,3.06211]
[1736523836813,0.01602957,3266.0,3265.7,3.06209]
[1736523837110,0.7562,3266.1,3265.3,3.0625]
[1736523837315,0.7562,3266.1,3265.7,3.06212]
[1736523837460,0.01602957,3266.6,3265.4,0.03062065]
[1736523837656,0.01602957,3266.6,3265.3,3.0625]
[1736523837905,0.01602957,3266.6,3265.5,3.06226]
[1736523838112,0.01602957,3266.7,3265.6,0.03061884]
[1736523838463,0.01602957,3266.7,3265.2,0.7907]
[1736523838464,0.01602957,3266.7,3265.8,3.062]
[1736523838815,0.7503,3266.6,3264.9,3.42681]
[1736523839016,0.01602957,3266.5,3265.2,3.06259]
[1736523839229,0.01602957,3266.5,3266.2,3.06163]
[1736523839381,0.7503,3266.6,3265.5,3.06231]
[1736523839713,0.01602957,3266.5,3265.7,3.06205]
[1736523839912,0.01602957,3266.5,3265.1,0.60699748]
[1736523840121,0.01602957,3266.5,3265.9,3.06192]
[1736523840418,0.01602957,3266.5,3265.0,3.06271]
[1736523840419,0.01602957,3266.5,3265.4,3.06241]
[1736523840713,0.7503,3266.6,3266.5,3.06138]
[1736523841013,0.7503,3266.6,3264.8,7.85355167]
[1736523841212,0.01602957,3266.5,3265.9,3.06191]
[1736523841615,0.7503,3266.6,3266.3,3.0615]
[1736523842029,0.7503,3266.6,3266.5,3.06138]
[1736523842326,0.8332,3267.3,3267.2,3.06072]
[1736523842624,0.8332,3267.3,3266.6,3.06127]
[1736523842803,0.8332,3267.8,3267.6,3.06035]
[1736523843114,0.8332,3268.9,3268.0,3.05992]
[1736523843419,0.8332,3268.9,3267.6,3.0603]
[1736523843420,0.01602957,3268.8,3267.7,3.0907994]
[1736523843568,3.07526957,3268.8,3267.0,1.39352428]
[1736523843765,4.25334696,3268.7,3267.5,3.06035]
[1736523843974,0.01602957,3268.6,3267.6,3.06034]
[1736523844324,0.01602957,3268.6,3266.5,3.89267]
[1736523844325,0.8031,3268.5,3267.2,3.06066]
[1736523844479,0.8198,3268.1,3266.5,0.8313]
[1736523844825,0.01602957,3268.0,3266.5,3.06137]
[1736523845027,3.06027,3267.7,3266.7,3.06117]
[1736523845251,0.8198,3267.9,3265.9,1.1502]
[1736523845252,0.32205657,3267.6,3266.1,3.06175]
[1736523845519,0.01602957,3267.8,3267.3,3.06054]
[1736523845725,0.8198,3267.9,3266.8,3.85429]
[1736523845882,0.01602957,3268.3,3266.8,3.85429]
[1736523845883,0.7656,3268.3,3267.3,3.06057]
[1736523846081,0.7656,3268.3,3267.8,3.06006]
[1736523846283,0.7656,3268.3,3267.2,3.06066]
[1736523846528,0.39855257,3268.2,3267.6,3.06034]
[1736523846709,0.01602957,3268.2,3267.4,3.0605]
[1736523846973,0.01602957,3268.2,3267.3,3.06058]
[1736523847203,0.8084,3267.7,3266.0,0.8174]
[1736523847411,0.7631,3267.4,3265.8,3.06202]
[1736523847565,0.7631,3267.4,3265.5,0.8174]
[1736523847566,0.39838357,3267.3,3265.5,0.8174]
[1736523847764,0.39838357,3267.3,3265.6,3.06222]
[1736523847765,0.01602957,3267.3,3265.6,3.06222]
[1736523848001,3.06109,3266.9,3265.7,3.06208]
[1736523848205,0.7838,3266.6,3265.2,3.41954]
[1736523848403,3.07740957,3266.5,3265.5,3.06227]
[1736523848635,0.01602957,3266.5,3265.0,0.7779]
[1736523848925,0.01602957,3266.5,3264.3,7.04189167]
[1736523848926,0.01602957,3266.5,3265.1,0.0306224]
[1736523849134,0.01602957,3266.5,3266.0,3.06184]
[1736523849432,0.82552957,3267.1,3266.1,0.03061667]
[1736523849611,0.82552957,3267.1,3265.7,0.7752]
[1736523849612,0.8095,3267.1,3266.6,3.06123]
[1736523849788,0.8095,3267.1,3266.7,0.0306106]
[1736523850122,0.8095,3267.1,3265.7,0.7752]
[1736523850399,0.01602957,3267.0,3265.6,0.61088113]
[1736523850562,0.01602957,3267.0,3266.0,0.8208]
[1736523850737,0.61743789,3268.1,3266.0,0.8208]
[1736523850738,0.8066,3267.4,3266.0,3.0618]
[1736523850939,0.8066,3267.4,3265.7,0.60089281]
[1736523850940,0.01602957,3267.3,3265.7,0.60089281]
[1736523851173,3.07670957,3267.3,3266.2,3.06165]
[1736523851394,0.38833096,3267.2,3266.3,3.06156]
[1736523851692,0.01602957,3267.1,3266.1,3.06174]
[1736523851852,3.07684957,3267.1,3266.1,3.0617]
[1736523852057,3.07684957,3267.1,3265.6,3.06216]
[1736523852058,3.06093,3267.0,3265.6,3.06216]
[1736523852252,3.84648,3266.5,3265.2,3.06251]
[1736523852498,0.40067757,3266.4,3265.6,3.06221]
[1736523852646,0.7851,3266.5,3266.1,3.06167]
[1736523852844,0.8161,3268.9,3266.2,0.8063]
[1736523853081,0.8161,3269.8,3267.5,4.78480167]
[1736523853237,0.8161,3269.8,3268.0,3.97850167]
[1736523853238,1.66964008,3269.8,3268.0,3.97850167]
[1736523853442,1.66964008,3269.8,3268.1,3.09047131]
[1736523853696,1.92166612,3269.8,3268.5,0.8301]
[1736523853840,1.92166612,3269.8,3267.9,0.8301]
[1736523854043,1.92166612,3269.8,3268.8,3.05914]
[1736523854363,3.0584,3269.7,3268.5,3.05949]
[1736523854588,1.06812604,3269.8,3269.0,3.05901]
[1736523854749,0.8161,3269.8,3269.6,3.05847]
[1736523854947,0.8161,3269.8,3269.4,3.05862]
[1736523855207,0.8161,3269.8,3269.1,3.05892]
[1736523855410,0.8161,3269.8,3268.1,3.05982]
[1736523855697,0.8161,3269.8,3268.5,3.05941]
[1736523855916,0.7797,3269.5,3267.4,0.8184]
[1736523856048,0.7797,3269.3,3267.3,3.06056]
[1736523856395,0.7797,3269.0,3268.2,3.05974]
[1736523856563,0.7797,3269.0,3268.0,3.05995]
[1736523856744,0.7797,3269.0,3267.8,3.06013]
[1736523856949,0.7797,3269.0,3267.9,3.05999]
[1736523857171,0.383869,3268.9,3268.2,3.05978]
[1736523857370,0.7797,3269.0,3267.7,3.06025]
[1736523857569,0.8183,3268.5,3267.1,0.357]
[1736523857767,0.8183,3268.5,3267.4,3.06045]
[1736523857992,0.8183,3268.5,3267.4,3.06044]
[1736523858193,0.8183,3268.5,3267.1,0.357]
[1736523858385,0.8183,3268.5,3266.5,5.33337553]
[1736523858685,0.8183,3268.4,3266.6,0.03060621]
[1736523858987,3.05981,3268.2,3266.6,3.06128]
[1736523859149,0.7747,3268.2,3266.6,3.06128]
[1736523859488,0.7747,3268.2,3266.4,3.06147]
[1736523859685,0.7747,3268.2,3267.4,3.06048]
[1736523859889,0.7747,3268.2,3266.7,0.03060724]
[1736523860184,0.8187,3269.8,3268.5,3.0595]
[1736523860484,0.8187,3269.8,3268.9,3.05907]
[1736523860688,0.8187,3269.8,3268.2,3.05978]
[1736523860845,0.8187,3269.8,3268.2,0.03059085]
[1736523861049,0.8187,3269.8,3268.6,3.05941]
[1736523861247,0.7657,3271.0,3269.7,3.05838]
[1736523861442,0.382286,3270.9,3269.7,3.05838]
[1736523861943,0.382286,3270.9,3269.4,0.03058243]
[1736523862150,3.05735,3270.8,3269.5,3.05851]
[1736523862345,0.7728,3270.7,3269.6,3.05847]
[1736523862597,0.7728,3270.7,3269.0,0.03058498]
[1736523862800,0.7728,3270.7,3268.9,3.66202587]
[1736523863036,0.7728,3270.7,3269.0,4.00908409]
[1736523863161,0.7728,3270.7,3269.9,3.05817]
[1736523863907,0.7728,3270.7,3269.9,3.05815]
[1736523864116,0.7728,3270.7,3270.0,3.05809]
[1736523864910,0.7728,3270.7,3269.2,3.05885]
[1736523865069,0.7728,3270.7,3269.5,3.97850167]
[1736523865267,0.7728,3270.7,3269.6,0.03057889]
[1736523865564,0.7728,3270.7,3270.1,3.05795]
[1736523865764,0.7728,3270.7,3269.1,3.05894]
[1736523866006,3.05754,3270.6,3269.1,3.05894]
[1736523866166,0.7728,3270.7,3269.0,3.97850167]
[1736523866167,0.383034,3270.5,3269.8,3.05825]
[1736523866510,0.7728,3270.7,3269.8,3.05824]
[1736523866711,0.7728,3270.7,3269.1,3.05894]
[1736523866895,0.7728,3270.7,3269.8,3.05826]
[1736523867216,0.7728,3270.7,3269.2,0.03058063]
[1736523867217,3.05771,3270.5,3269.0,7.03749167]
[1736523867361,0.7728,3270.7,3269.1,3.08952583]
[1736523867563,0.7728,3270.7,3269.5,3.97850167]
[1736523867778,0.7728,3270.7,3269.0,3.97850167]
[1736523867978,0.7728,3270.7,3269.7,3.05838]
[1736523868191,0.383017,3270.6,3269.7,3.05838]
[1736523868569,0.383017,3270.6,3269.3,3.05875]
[1736523868770,0.383017,3270.6,3269.2,3.0588]
[1736523869016,3.05782,3270.3,3268.5,3.97850167]
[1736523869226,3.05782,3270.3,3268.4,3.05951]
[1736523869227,3.05868,3269.4,3268.4,3.05959]
[1736523869525,3.05868,3269.4,3266.8,0.24999315]
[1736523869526,0.8199,3268.7,3267.3,3.82276]
[1736523869683,0.8199,3268.7,3267.6,3.0603]
[1736523869880,3.05857,3269.5,3267.2,0.60989501]
[1736523869881,0.8009,3268.3,3267.2,0.60989501]
[1736523870225,0.8009,3268.3,3267.2,3.06072]
[1736523870438,0.8009,3268.3,3267.0,3.97850167]
[1736523870600,0.8009,3268.3,3267.8,3.06014]
[1736523870783,0.8009,3268.3,3267.2,3.06065]
[1736523870989,0.8009,3268.3,3267.0,3.97850167]
[1736523871309,0.8009,3268.3,3267.6,3.06032]
[1736523871511,0.8009,3268.3,3267.7,3.06017]
[1736523872587,0.8009,3268.3,3267.3,3.06053]
[1736523872920,3.05996,3268.1,3266.5,7.64316328]
[1736523873128,0.8009,3268.3,3267.0,3.97850167]
[1736523873641,3.05979,3268.2,3266.8,3.061]
[1736523873803,3.05988,3268.1,3266.5,4.59427637]
[1736523874003,0.8009,3268.3,3266.6,3.09183614]
[1736523874199,0.8009,3268.3,3266.5,3.71636637]
[1736523874405,0.38009,3268.2,3266.5,3.71636637]
[1736523874605,3.05996,3268.1,3267.0,3.06091]
[1736523874806,3.05997,3268.0,3267.0,3.06091]
[1736523875027,0.55,3267.8,3265.8,3.81805]
[1736523875239,0.7663,3267.2,3266.2,3.06161]
[1736523875403,0.7663,3267.2,3266.3,3.06156]
[1736523875789,0.7663,3267.2,3266.1,3.06173]
[1736523875990,0.382693,3267.1,3266.2,3.06165]
[1736523876553,0.382693,3267.1,3265.5,3.97850167]
[1736523876758,0.7663,3267.0,3265.5,0.59841737]
[1736523876961,0.7663,3267.0,3265.6,0.03061782]
[1736523877251,0.7663,3267.0,3266.0,3.06183]
[1736523877604,0.7663,3267.0,3265.9,3.06194]
[1736523877933,0.7663,3267.0,3265.5,4.57691904]
[1736523877934,3.06116,3266.8,3265.7,3.06211]
[1736523878133,0.7663,3267.0,3265.8,0.03061946]
[1736523878335,0.7663,3267.0,3266.0,3.97850167]
[1736523878541,3.06018,3267.8,3266.6,3.06125]
[1736523878854,1.129418,3267.7,3266.1,3.06167]
[1736523879035,0.8234,3267.7,3266.3,3.06156]
[1736523879349,3.88368,3267.7,3266.6,3.06119]
[1736523879721,0.55,3267.6,3266.0,3.97850167]
[1736523879934,0.8234,3267.2,3266.2,3.06165]
[1736523880260,0.8234,3267.2,3264.9,3.0]
[1736523880261,0.8234,3266.7,3265.2,3.06255]
[1736523880405,0.8234,3266.7,3265.3,0.03061937]
[1736523880612,1.211852,3266.7,3265.3,3.09306937]
[1736523880871,1.211852,3266.7,3265.4,0.59977129]
[1736523881025,0.8234,3266.7,3265.2,3.06259]
[1736523881366,3.8846,3266.7,3265.6,3.06216]
[1736523881704,0.8234,3266.7,3265.3,0.03062022]
[1736523881909,0.8234,3266.7,3266.2,3.06164]
[1736523882118,0.8234,3266.7,3265.5,3.97850167]
[1736523882359,0.8234,3266.7,3266.0,3.06181]
[1736523882651,0.8234,3266.7,3265.8,3.06201]
[1736523882952,1.211846,3266.7,3265.8,3.06201]
[1736523883321,1.211846,3266.7,3265.6,0.03061468]
[1736523883648,1.211846,3266.7,3265.2,3.06259]
[1736523883649,0.8234,3266.7,3265.2,3.06259]
[1736523883852,0.8234,3266.7,3265.5,3.97850167]
[1736523884154,0.8021,3267.6,3266.6,3.06128]
[1736523884365,0.8021,3267.6,3265.5,3.97850167]
[1736523884366,0.8021,3267.6,3265.8,3.06203]
[1736523884565,3.86287,3267.2,3266.1,3.06172]
[1736523884871,0.386287,3267.1,3265.7,3.06212]
[1736523885023,0.808,3266.7,3265.1,3.06269]
[1736523885358,0.55,3266.6,3264.9,3.86242]
[1736523885562,0.7852,3266.0,3264.9,0.62147637]
[1736523885742,0.7852,3266.0,3264.0,3.97850167]
[1736523885743,0.55,3265.9,3264.6,3.06308]
[1736523885943,0.55,3265.9,3264.2,3.06352]
[1736523885944,0.7852,3265.2,3264.2,3.06352]
[1736523886266,0.7852,3265.2,3263.9,0.03063171]
[1736523886457,0.7852,3265.2,3263.8,0.60921361]
[1736523886660,0.7852,3265.2,3264.4,3.06329]
[1736523887162,0.7852,3265.2,3264.1,0.03063188]
[1736523887468,0.7852,3265.2,3264.5,3.0632]
[1736523887790,0.8072,3266.2,3264.6,4.00913168]
[1736523887940,0.8072,3266.2,3264.8,3.68581658]
[1736523888130,0.8072,3266.2,3264.6,3.97850167]
[1736523888131,3.0618,3266.1,3264.6,3.97850167]
[1736523888332,0.3869,3266.1,3265.3,3.06249]
[1736523888628,0.8072,3266.2,3264.7,0.61703328]
[1736523888828,0.8072,3266.2,3265.4,3.06233]
[1736523889589,0.0075,3267.2,3265.1,0.03062307]
[1736523889590,3.97850167,3268.1,3265.5,0.03062304]
[1736523889728,0.8287,3266.9,3265.8,3.06203]
[1736523889929,0.8287,3266.9,3266.4,3.06139]
[1736523890179,0.8287,3266.9,3265.7,4.33450167]
[1736523890380,0.8287,3266.9,3266.2,3.06165]
[1736523890529,0.8287,3266.9,3266.0,0.61960962]
[1736523890732,0.8287,3266.9,3265.6,0.7943]
[1736523890981,0.8287,3266.9,3265.9,3.06194]
[1736523891277,0.8287,3266.9,3266.2,3.06159]
[1736523891477,0.8276,3267.8,3267.1,3.06081]
[1736523891770,0.8276,3267.8,3266.3,0.0306115]
[1736523891771,0.8276,3267.8,3266.7,3.97850167]
[1736523891977,0.8276,3267.8,3267.0,3.06089]
[1736523892272,0.8276,3267.8,3267.1,3.06079]
[1736523892435,0.8276,3267.8,3266.8,0.62979042]
[1736523892630,0.8276,3267.8,3267.0,3.06087]
[1736523893066,0.8276,3267.8,3266.2,3.97850167]
[1736523893262,0.7553,3269.3,3268.0,3.05994]
[1736523893466,0.7553,3268.9,3267.2,3.97850167]
[1736523893663,0.7553,3268.9,3267.3,0.03059801]
[1736523893978,0.7553,3268.9,3267.4,0.03059765]
[1736523894159,0.7553,3268.9,3267.7,3.97850167]
[1736523894349,0.7553,3268.9,3268.4,3.05954]
[1736523894549,0.7553,3268.9,3268.3,3.05966]
[1736523894934,0.7553,3268.9,3267.2,3.97850167]
[1736523895135,0.7553,3268.9,3268.1,3.05986]
[1736523895335,0.7553,3268.9,3267.2,3.97850167]
[1736523895336,3.81451,3268.9,3267.2,3.97850167]
[1736523895660,0.8304,3268.0,3266.7,3.06119]
[1736523895858,3.89039,3268.0,3266.4,3.0614]
[1736523896062,3.89039,3268.0,3266.2,0.7574]
[1736523896265,0.8304,3268.0,3267.3,3.06062]
[1736523896435,0.8304,3268.0,3266.6,3.97850167]
[1736523896436,0.8304,3268.0,3267.4,3.06052]
[1736523896891,0.8304,3268.0,3267.1,3.06078]
[1736523897236,0.55,3267.7,3266.4,0.60971796]
[1736523897432,0.0075,3268.7,3266.5,3.06135]
[1736523897433,1.3804,3267.5,3266.5,3.06135]
[1736523897632,0.444084,3267.4,3266.6,3.06127]
[1736523897838,0.444084,3267.4,3265.6,3.97850167]
[1736523898062,0.8304,3267.5,3266.1,0.62424527]
[1736523898382,0.8304,3267.5,3266.2,0.03061321]
[1736523898570,3.89086,3267.5,3266.4,3.0614]
[1736523898773,0.8304,3267.5,3266.2,0.03061321]